Cogmind - Beta 13 @@@ ROGUE MODE // 2024.07.07 @ 22:00:53 Player: ThatBishHoly Result: Destroyed by H-61 Shepherd with Heavy Assault Cannon Performance ------------- Evolutions (2) 1000 Regions Visited (4) 800 Robots Destroyed (29) 145 Value Destroyed (923) 923 Prototype IDs (3) 60 Alien Tech Used (0) 0 Bonus (-91) -91 TOTAL SCORE: 2837 Bonus ------- Follower Combat Kills 60 Friendly Fire -151 Cogmind --------- Core Integrity 0/550 Matter 77/300 Energy 62/100 System Corruption 0% Temperature Cool (0) Movement Core (150) Ox2 Location -8/Materials Parts ------- > --- POWER (1) -------- (None) > --- PROPULSION (4) --- (None) > --- UTILITY (4) ------ Improved Heat Sink Recalibrator > --- WEAPON (2) ------- Advanced Beam Rifle Enhanced Autogun > --- INVENTORY (5) ---- Heavy Battle Rifle Improved Light Cannon Advanced Assault Cannon Great Maul Axe Peak State ------------ > --- POWER ------------ Ion Engine > --- PROPULSION ------- Aluminum Leg Aluminum Leg Aluminum Leg Carbon-fiber Leg > --- UTILITY ---------- Small Storage Unit Sensor Array Hardened Medium Armor Plating Hardened Medium Armor Plating > --- WEAPON ----------- Advanced Assault Cannon Advanced Assault Cannon > --- INVENTORY -------- Improved Heat Sink Recalibrator Advanced Beam Rifle Heavy Battle Rifle Advanced Assault Cannon Rocket Launcher Great Maul Axe [Rating: 25] Favorites ----------- Power Ion Engine Engine Ion Engine Power Core Light Nuclear Core Propulsion Light Treads Treads Light Treads Leg Aluminum Leg Wheel Armored Wheel Utility Hardened Medium Armor Plating Device Sensor Array Storage Small Storage Unit Protection Hardened Medium Armor Plating Weapon Heavy Battle Rifle Energy Gun Heavy EM Pulse Gun Energy Cannon Particle Cannon Ballistic Gun Heavy Battle Rifle Ballistic Cannon Advanced Assault Cannon Launcher Grenade Launcher Impact Weapon Great Maul Slashing Weapon Axe Build | -11 -10 -10 -9 -8 ------- Run | Yrd Mat Min Mat Mat Slots Evolved 4 | . . . 2 2 Power . | . . . . . Propulsion 2 | . . . 1 1 Utility 2 | . . . 1 1 Weapon . | . . . . . Parts Attached 41 | 6 2 8 12 13 Power 6 | 1 . 2 2 1 Engine 5 | 1 . 1 2 1 Core 1 | . . 1 . . Reactor . | . . . . . Propulsion 9 | 2 . . 6 1 Treads 2 | 2 . . . . Leg 6 | . . . 5 1 Wheel 1 | . . . 1 . Hover . | . . . . . Flight . | . . . . . Utility 8 | 1 . 3 1 3 Device 4 | . . 1 . 3 Storage 2 | 1 . 1 . . Processor . | . . . . . Hackware . | . . . . . Protection 2 | . . 1 1 . Artifact . | . . . . . Weapon 18 | 2 2 3 3 8 Energy Gun 6 | 2 2 1 . 1 Energy Cannon 1 | . . . 1 . Ballistic Gun 3 | . . 1 1 1 Ballistic Cannon 5 | . . . . 5 Launcher 1 | . . 1 . . Special Weapon . | . . . . . Impact Weapon 1 | . . . 1 . Slashing Weapon 1 | . . . . 1 Piercing Weapon . | . . . . . Special Melee Weapon . | . . . . . Unidentified Prototypes 3 | . . . 1 2 Parts Lost 13 | . . 2 1 10 Power 3 | . . 1 1 1 Propulsion 4 | . . . . 4 Utility 4 | . . . . 4 Weapon 2 | . . 1 . 1 Highest Loss Streak 7 | . . 1 1 7 To Critical Strikes . | . . . . . Average Slot Usage (%) 90 | . 85 97 89 85 Engine 6 | . 14 5 4 9 Core 3 | . . 8 2 . Treads 13 | . 28 28 3 . Leg 13 | . . . 19 29 Wheel 1 | . . . 4 . Device 2 | . . . . 10 Storage 12 | . 14 17 11 8 Protection 12 | . . 8 21 10 Energy Gun 9 | . 28 20 . . Energy Cannon 1 | . . . 3 . Ballistic Gun 6 | . . 3 12 3 Ballistic Cannon 2 | . . . . 11 Launcher 2 | . . 3 4 . Naked Turns . | . . . . . Heaviest Build 39 | 11 14 26 34 39 Greatest Support 45 | 40 40 40 35 45 Greatest Overweight (x) 4 | . . 1 2 4 Average Overweight (x) . | . . . . . Largest Inventory Capacity 8 | 8 8 8 8 8 Average Capacity 7 | 6 8 8 8 7 Most Carried 8 | 2 7 8 8 8 Average Carried 6 | . 2 7 7 7 Final Capacity 8 | 8 8 8 8 5 Final Carried 8 | . 7 7 8 5 Class Distribution -------------------- 66% | Mutant 33% | Scavenger-Mutant Dominant Class ---------------- Mutant | -10/Materials Mutant | -10/Mines Mutant | -9/Materials Scavenger-Mutant | -8/Materials Resources | -11 -10 -10 -9 -8 ----------- Run | Yrd Mat Min Mat Mat Matter Collected 706 | 33 114 188 99 272 Remotely . | . . . . . Salvage Created 1031 | . 114 161 359 397 Parts 58 | . 4 13 25 16 Haulers Intercepted 1 | . . . 1 . Recyclers Shooed . | . . . . . Parts Field Recycled . | . . . . . Retrieved Matter . | . . . . . Parts Self-Destructed . | . . . . . Prevented . | . . . . . Kills | -11 -10 -10 -9 -8 ------- Run | Yrd Mat Min Mat Mat Combat Hostiles Destroyed 25 | . 3 5 10 7 Melee 1 | . . . . 1 Guns 11 | . 3 5 3 . Cannons 10 | . . . 4 6 AOE 3 | . . . 3 . Classes Destroyed 7 | . 1 1 2 3 Builder 1 | . . . . 1 Hauler 1 | . . . 1 . Recycler 1 | . . . . 1 Swarmer 6 | . . 3 3 . Grunt 12 | . 3 2 6 1 Sentry 4 | . . . 1 3 Specialist 3 | . . . . 3 Thug 1 | . . . 1 . Best Kill Streak 5 | . 2 3 5 3 Combat Bots Only 4 | . 2 3 4 3 Max Kills in Single Turn 2 | . 1 1 2 1 Gunslinging . | . . . . . Exploded 1 | . . . 1 . Melee 1 | . . . . 1 Uniques/NPCs Destroyed . | . . . . . Combat | -11 -10 -10 -9 -8 -------- Run | Yrd Mat Min Mat Mat Hostile Shots Fired 245 | . 28 31 30 156 Missed 72 | . 6 5 11 50 Damage Taken 2720 | . 244 355 260 1861 Core 716 | . 32 87 . 597 Absorbed by Shields . | . . . . . Core Remaining (%) 84 | 100 . 52 100 . Volleys Fired 74 | . 11 14 26 23 Largest 2 | . 2 2 2 2 Hottest 120 | . 90 120 101 96 Shots Fired 132 | . 22 28 45 37 Gun 82 | . 22 28 29 3 Cannon 45 | . . . 11 34 Launcher 5 | . . . 5 . Special . | . . . . . Kinetic 66 | . . . 29 37 Thermal 38 | . 20 7 11 . Explosive 5 | . . . 5 . Electromagnetic 23 | . 2 21 . . Robot Hit Streak 8 | . 6 6 6 8 Robot Miss Streak 4 | . 1 4 4 4 Penetration Max . | . . . . . Secondary Targets . | . . . . . Shots Hit Robots 77 | . 14 15 17 31 Core Hits 34 | . 5 6 12 11 Critical Kills . | . . . . . Critical Parts Destroyed 1 | . . . 1 . Critical Strikes 5 | . . . 1 4 Destroy 1 | . . . 1 . Blast 2 | . . . . 2 Sever 2 | . . . . 2 Melee Attacks 7 | . . . . 7 Impact . | . . . . . Slashing 7 | . . . . 7 Piercing . | . . . . . Sneak Attacks 1 | . . . . 1 Combat Hostiles . | . . . . . Follow-up Attacks . | . . . . . Damage Inflicted 1914 | . 166 239 602 907 Guns 680 | . 166 239 235 40 Cannons 681 | . . . 82 599 Explosions 279 | . . . 279 . Melee 252 | . . . . 252 Ramming 22 | . . . 6 16 Kinetic 874 | . . . 235 639 Thermal 293 | . 149 62 82 . Explosive 279 | . . . 279 . Electromagnetic 194 | . 17 177 . . Impact . | . . . . . Slashing 252 | . . . . 252 Piercing . | . . . . . Highest Corruption . | . . . . . Average Corruption . | . . . . . Corruption Purged . | . . . . . Corruption Blocked . | . . . . . Overload Shots . | . . . . . Overflow Damage 26 | . . . 26 . Projectiles . | . . . . . Explosions 26 | . . . 26 . Melee . | . . . . . Knockbacks 5 | . . . . 5 Impact . | . . . . . Kinetic 5 | . . . . 5 Secondary . | . . . . . Self-Inflicted Damage 58 | . . . 58 . Shots 2 | . . . 2 . Rammed . | . . . . . Targets Rammed 3 | . . . 1 2 Kicked 3 | . . . 1 2 Crushed . | . . . . . Highest Temperature 560 | . 354 560 288 216 Average Temperature 125 | . 154 224 68 79 Received Heat Transfer 561 | . 132 90 69 270 Effects 14 | . . 11 1 2 Shutdowns 1 | . . 1 . . Interference 3 | . . . 1 2 Matter Decay 1 | . . 1 . . Short Circuit 3 | . . 3 . . Damage (major) 5 | . . 5 . . Damage (core) 1 | . . 1 . . Siege Activations . | . . . . . Robots Corrupted . | . . . . . Combat Hostiles . | . . . . . Parts Fried 1 | . . 1 . . Impact Corruptions . | . . . . . Robots Melted . | . . . . . Combat Hostiles . | . . . . . Parts Melted 1 | . 1 . . . Heat Transferred 656 | . 397 111 148 . Parts Sabotaged . | . . . . . Parts Stolen . | . . . . . Parts Stripped . | . . . . . Power Chain Reactions . | . . . . . Alert | -11 -10 -10 -9 -8 ------- Run | Yrd Mat Min Mat Mat Peak Influence 381 | . 110 193 381 288 Initial 94 | . . 42 . 94 Average 138 | . 47 120 185 170 Maximum Alert Level 1 | . . . 1 1 Low Security (%) 78 | 100 100 100 65 54 Level 1 21 | . . . 34 45 Level 2 . | . . . . . Level 3 . | . . . . . Level 4 . | . . . . . Level 5 . | . . . . . High Security . | . . . . . Max Security . | . . . . . Squads Dispatched 8 | . 2 . 4 2 Investigation 2 | . . . 2 . Extermination . | . . . . . Reinforcement 6 | . 2 . 2 2 Assault . | . . . . . Garrison . | . . . . . Intercept . | . . . . . Searches Triggered . | . . . . . Construction Impeded 1 | . . . 1 . Haulers Reinforced . | . . . . . Active Scanning Responses . | . . . . . Cargo Convoy Interrupts . | . . . . . Stealth | -11 -10 -10 -9 -8 --------- Run | Yrd Mat Min Mat Mat Distress Signals 3 | . . . 1 2 Communications Jammed . | . . . . . Distress Signals . | . . . . . Times Spotted 45 | . 8 7 16 14 Peak Tracking Total 6 | . 3 3 3 6 Tactical Retreats 2 | . . . 1 1 Traps | -11 -10 -10 -9 -8 ------- Run | Yrd Mat Min Mat Mat Traps Triggered 1 | . . . 1 . Indirectly . | . . . . . Trap Hack Attempts . | . . . . . Triggered . | . . . . . Disarmed . | . . . . . Reprogrammed . | . . . . . Reused . | . . . . . Traps Extracted . | . . . . . Installed . | . . . . . Triggered . | . . . . . Machines | -11 -10 -10 -9 -8 ---------- Run | Yrd Mat Min Mat Mat Machines Disabled 6 | . . 1 3 2 Max in Single Turn 1 | . . 1 1 1 Machines Repaired . | . . . . . Machines Dismantled . | . . . . . Machines Sabotaged . | . . . . . Overloaded Fab Kills . | . . . . . Hacking | -11 -10 -10 -9 -8 --------- Run | Yrd Mat Min Mat Mat Machines Accessed 5 | . . 1 3 1 Terminals 4 | . . . 3 1 Fabricators . | . . . . . Repair Stations . | . . . . . Recycling Units . | . . . . . Scanalyzers . | . . . . . Garrison Access . | . . . . . Total Hacks 7 | . . 1 4 2 Successful 5 | . . 1 4 . Failed 2 | . . . . 2 Catastrophic . | . . . . . Database Lockouts . | . . . . . Manual 6 | . . . 4 2 Terminals 6 | . . . 4 2 Fabricators . | . . . . . Repair Stations . | . . . . . Recycling Units . | . . . . . Scanalyzers . | . . . . . Garrison Access . | . . . . . Terminal Hacks 5 | . . 1 4 . Record 1 | . . . 1 . Open Door 1 | . . 1 . . Zone Layout 3 | . . . 3 . Fabricator Hacks . | . . . . . Repair Station Hacks . | . . . . . Recycling Unit Hacks . | . . . . . Scanalyzer . | . . . . . Garrison Access Hacks . | . . . . . Unauthorized Hacks . | . . . . . Terminals . | . . . . . Fabricators . | . . . . . Repair Stations . | . . . . . Recycling Units . | . . . . . Scanalyzers . | . . . . . Garrison Access . | . . . . . Data Cores Recovered . | . . . . . Used . | . . . . . Hacking Detections 2 | . . . 1 1 Full Trace Events . | . . . . . Feedback Events . | . . . . . Feedback Blocked . | . . . . . Robot Schematics Acquired . | . . . . . Robots Built . | . . . . . Authchips . | . . . . . Time . | . . . . . Total Robot Build Rating . | . . . . . Part Schematics Acquired . | . . . . . Parts Built . | . . . . . Authchips . | . . . . . Time . | . . . . . Total Part Build Rating . | . . . . . Parts Repaired . | . . . . . Time . | . . . . . Parts Recycled . | . . . . . Recycled Matter . | . . . . . Retrieved Matter . | . . . . . Retrieved Components . | . . . . . Parts Scanalyzed . | . . . . . Part Schematics Acquired . | . . . . . Parts Damaged . | . . . . . Bothacking | -11 -10 -10 -9 -8 ------------ Run | Yrd Mat Min Mat Mat Used RIF Installer . | . . . . . Robots Hacked . | . . . . . Non-combat . | . . . . . Combat . | . . . . . Robot Hacks Applied . | . . . . . Relay Couplers Released . | . . . . . Fabnet Peak Effective % . | . . . . . Robots Rewired . | . . . . . Allies Hacked . | . . . . . Hacks Repelled . | . . . . . Allies | -11 -10 -10 -9 -8 -------- Run | Yrd Mat Min Mat Mat Total Allies 3 | . . 3 . . Largest Group 3 | . . 3 . . Highest-Rated Group 40 | . . 40 . . Highest-Rated Ally 16 | . . 16 . . Total Orders . | . . . . . Ally Attacks 12 | . . 12 . . Total Damage 125 | . . 125 . . Kills 2 | . . 2 . . Allies Corrupted . | . . . . . Allies Melted . | . . . . . Intel | -11 -10 -10 -9 -8 ------- Run | Yrd Mat Min Mat Mat Robot Analysis Total . | . . . . . Derelict Logs Recovered . | . . . . . Drone Launches . | . . . . . Drone Recoveries . | . . . . . Exploration | -11 -10 -10 -9 -8 ------------- Run | Yrd Mat Min Mat Mat Turns Passed 1588 | 64 210 443 538 333 Spaces Moved 805 | 36 103 195 337 134 Core 7 | 4 . . . 3 Treads 352 | 32 103 195 22 . Legs 313 | . . . 182 131 Wheels 133 | . . . 133 . Hover . | . . . . . Flight . | . . . . . Fastest Speed 50 | 50 160 160 120 120 Average Speed 149 | 147 160 187 128 139 Slowest Speed 260 | 160 160 240 260 250 Overloaded Moves . | . . . . . Propulsion Burnouts . | . . . . . Robots Hopped . | . . . . . Cave-ins Triggered . | . . . . . Exploration Rate (%) 23 | 4 21 44 36 11 Regions Visited 4 Branch Regions 1 Pre-discovered Areas . | . . . . . Known Exits Taken . | . . . . . Unknown Exits Taken 4 | 1 1 1 1 . Scrap Searched 1 | . . 1 . . Spaces Dug . | . . . . . Terrain Destroyed 40 | . . . 31 9 Melee . | . . . . . Projectile 12 | . . . 3 9 AOE 28 | . . . 28 . Terrain Rammed . | . . . . . Walls Destroyed . | . . . . . Machines Disabled . | . . . . . Actions | -11 -10 -10 -9 -8 --------- Run | Yrd Mat Min Mat Mat Total 1046 | 47 126 247 398 228 Wait 55 | . . 12 9 34 Move 801 | 35 102 194 336 134 Hop . | . . . . . Pick Up 40 | 6 9 10 6 9 Fast Attach 7 | . . 2 3 2 Attach 16 | 6 . 4 3 3 Detach . | . . . . . Swap 18 | . 2 2 6 8 Drop 25 | . 2 9 8 6 Fire 74 | . 11 14 26 23 Melee 7 | . . . . 7 Ram . | . . . . . Kick 3 | . . . 1 2 Crush . | . . . . . Escape Stasis . | . . . . . Rewire . | . . . . . Trap . | . . . . . Miscellaneous . | . . . . . Route ------- -11/Scrapyard -10/Materials -10/Mines (discovered 2 exits: *Mat x2) -9/Materials (discovered 2 exits: *Mat / [*Min]) -8/Materials History --------- Turn | Location | Event 7 | -11/Scrapyard | Discovered new exit (range 15) 65 | -11/Scrapyard | Entered Materials 233 | -10/Materials | Discovered new exit (range 11) 275 | -10/Materials | Entered Mines 301 | -10/Mines | Build established: Mutant 324 | -10/Mines | Assisted by bots powering up and referring to "LRC-V3" 413 | -10/Mines | Met a Derelict who couldn't figure out how to use a Trap Extractor 471 | -10/Mines | Received a Rocket Launcher from a helpful Derelict 481 | -10/Mines | Discovered new exit (range 7) 600 | -10/Mines | A weapon hastily lodged in a ceiling crevice suddenly fell to the ground 692 | -10/Mines | Discovered new exit (range 7) 718 | -10/Mines | Entered Materials 718 | -9/Materials | Evolved 2 slots: Propulsion x1, Utility x1 1228 | -9/Materials | Discovered new exit (range 15) 1238 | -9/Materials | Discovered new exit (range 15) 1256 | -9/Materials | Entered another Materials area 1256 | -8/Materials | Evolved 2 slots: Propulsion x1, Utility x1 1326 | -8/Materials | Build established: Scavenger-Mutant 1495 | -8/Materials | Lost 3 parts (3u) 1565 | -8/Materials | Core integrity fell below 50% 1571 | -8/Materials | Core integrity fell below 20% 1589 | -8/Materials | Destroyed by H-61 Shepherd with Heavy Assault Cannon Last Messages --------------- 01569_ K-01 Serf collects debris. 01572_ R-06 Scavenger collects Imp. Ion Engine. 01572_ K-01 Serf collects debris. 01574_ Slug penetrates Wall. 01575_ Y-45 Defender destroyed. 01575_ K-01 Serf collects debris. 01577_ X-62 Marksman knocked back. 01578_ K-01 Serf collects debris. 01579_ Sml. Storage Unit destroyed. 01579_ Critical hit (Blast). 01579_ Slug penetrates K-01 Serf. 01579_ K-01 Serf destroyed. 01579_ X-62 Marksman knocked back. 01581_ Acquired 7 matter. 01582_ Penetrated by Slug. 01582_ Imp. Ion Engine destroyed. 01586_ R-06 Scavenger collects Med. Matter Pod. 01586_ Acquired Prototype Energy Gun. 01586_ Identified Adv. Beam Rifle. 01588_ Identified Enh. Autogun. Map ----- +----------------------------------------------------+ | | | ?????????????????????????? | | ?????????????????????????? | | ?????????????????????????? | | ?????????????????????????? | | ?????????????????????????? | | ?????????????????????????? | | ?????????????????????????? | | ?????????????????????????? | | ??? ??????????????????? | | ??? ??????????????????? | | ??? ??????????????????? | | ??? ??????????????????? | | ???# #??????????#???????? | | ???# #?????????? ???????? | | ???# +????????"" #??????? | | ???# #????????"" #??????? | | ???# #????????"" ??????? | | ###" #???????? #??????? | | ## #???????? ???????? | | ## #???????? ???????? | | ## #????????#"#???????? | | ## ##???????# #???????? | | # [######### #??##???? | | + H ####;#### | | # ;% %]]]]@ | | " # ###+#### # ]]%%# | | " ######? ??# # %=]] %# | | " #?????? ?# #rx% # | | #?????? ##% ; % # | | ###??????""" ## %+ %# | | ???????? """ ## !# % %# | | ???????? """ ## #% !# | | ???????? + # %%# | | ???????? ??? ### # ! # | | ???????# ??? #?? #! # | | ???????#?????#?? ####### # | | ???????????????? #??????## | | ???????????????? ????????? | | ???????????????? ????????? | | ???????????????? ????????? | | ???????????????? ????????? | | ?????????????????????????? | | ?????????????????????????? | | ?????????????????????????? | | ?????????????????????????? | | ?????????????????????????? | | ?????????????????????????? | | ?????????????????????????? | | ?????????????????????????? | +----------------------------------------------------+ Best States ------------- Heat Dissipation 45 Energy Generation 14 Energy Capacity 400 Matter Stores 300 Matter Capacity 300 Sight Range 16 Robot Scan Range 14 Terrain Scan Density 10 Armor Coverage 450 Evasion (%) 55 Recoil Reduction 2 Trap Extractor Capacity 6 Item Schematics ----------------- None Robot Schematics ------------------ None Fabricated ------------ Nothing Alien Tech Used ----------------- None Achievements -------------- None Challenges ------------ None Game ------ Seed DeuteriumSwarmStorage Manual? 0 Play Time 00:25:05 Cumulative 26.9 hours Start 2024.07.07 @ 21:37:24 End 2024.07.07 @ 22:00:53 Sessions 1 Manual Loads 0 Difficulty Rogue Special Mode None Game No. 83 Rogue 83 Adventurer 0 Explorer 0 Win Type - Total 0 Types 0/0/0/0/0/0/0/0/0 Lore% 17 Gallery% 32 Achievement% 23 Wizard Run 0 Options --------- Layout 1 ASCII 0 Keyboard 0 Movement Mouse Keybinds 0 Fullscreen 1 Font 48/Smallcaps Map View 25x17 Zoom Use 88% Tactical HUD 1 Map Filters NONE Filters NONE Steam 1 RUN: 2c03cdf5-7f1d-4d73-bcf5-33b3c1177cc5